Workbook

Sheet 主材采购
A1: 主材采购 招标要约价
A2: 项目名称：规划G7路（恒祥路-婺源路）-主材采购
A3: 序号 | B3: 材料名称 | C3: 规格型号 | D3: 单位 | E3: 数量 | F3: 含税单价（元） | G3: 税率 | H3: 总价（元） | I3: 备注
A4: 1 | B4: 钢筋 | C4: HPB300，φ10以内 | D4: kg | E4: =4954.82+1384.14 -> 6338.96 | F4: 3.41 | G4: 13% | H4: =ROUND(E4*F4,2) -> 21615.85 | I4: 排水工程雨水管网钢筋，交通设施单柱式标志立杆基础、照明工程路灯基础、监控工程信号灯检查井钢筋、电力工程混凝土井钢筋
A5: 2 | B5: 钢筋 | C5: HPB300，φ12～18 | D5: kg | E5: 3372.25 | F5: 3.57 | G5: 13% | H5: =ROUND(E5*F5,2) -> 12038.93 | I5: 电力工程混凝土井钢筋
A6: 3 | B6: 钢筋 | C6: HRB400，φ10以内 | D6: kg | E6: 20.40 | F6: 3.44 | G6: 13% | H6: =ROUND(E6*F6,2) -> 70.18 | I6: 电力工程混凝土井钢筋
A7: 4 | B7: 钢筋 | C7: HRB400，φ12～18以内 | D7: kg | E7: =13308.6+15978.73 -> 29287.33 | F7: 3.23 | G7: 13% | H7: =ROUND(E7*F7,2) -> 94598.08 | I7: 排水工程雨水管网钢筋，交通设施钢筋、照明工程路灯基础、电力工程混凝土井钢筋、拆除现状绿化带后新建车行道路面
A8: 5 | B8: 钢筋 | C8: HRB400，φ20～25以内 | D8: kg | E8: 1706.63 | F8: 3.23 | G8: 13% | H8: =ROUND(E8*F8,2) -> 5512.41 | I8: 电力工程混凝土井钢筋
A9: 6 | B9: 花岗岩侧石 | C9: 1000*330*250mm | D9: m | E9: 415.11 | F9: 110.00 | G9: 13% | H9: =ROUND(E9*F9,2) -> 45662.10 | I9: 道路工程路缘石
A10: 7 | B10: 花岗岩平石 | C10: 750*250*90mm | D10: m | E10: 415.11 | F10: 46.00 | G10: 13% | H10: 19095.06 | I10: 道路工程路缘石
A11: 8 | B11: 花岗岩侧石 | C11: 750*100*200mm | D11: m | E11: 415.11 | F11: 46.00 | G11: 13% | H11: 19095.06 | I11: 道路工程路缘石
A12: 9 | B12: 花岗岩树池石 | C12: 1200*150*50mm | D12: m | E12: 186.05 | F12: 30.00 | G12: 13% | H12: 5581.50 | I12: 道路工程路缘石
A13: 10 | B13: PVC穿孔排水管 | C13: DN60 | D13: m | E13: 502.86 | F13: 10.00 | G13: 13% | H13: 5028.60 | I13: 道路工程PVC穿孔排水管
A14: 11 | B14: PVC塑料管 | C14: DN60 | D14: m | E14: 419.22 | F14: 7.00 | G14: 13% | H14: 2934.54 | I14: 道路工程PVC排水管
A15: 12 | B15: UPVC盲管 | C15: DN100 | D15: m | E15: 410.04 | F15: 7.00 | G15: 113% | H15: 2870.28 | I15: 排水工程，其他
A16: 13 | B16: 钢筋混凝土管 | C16: DN500 | D16: m | E16: 76.76 | F16: 105.00 | G16: 13% | H16: 8059.80 | I16: 雨水管网Ⅱ级钢筋混凝土承插管
A17: 14 | B17: 钢筋混凝土管 | C17: DN600 | D17: m | E17: 85.85 | F17: 135.00 | G17: 13% | H17: 11589.75 | I17: 雨水管网Ⅱ级钢筋混凝土承插管
A18: 15 | B18: HDPE缠绕增强管 | C18: B型结构，DN300，SN8 | D18: m | E18: 112.00 | F18: 80.00 | G18: 13% | H18: =ROUND(E18*F18,2) -> 8960.00 | I18: 雨水管网HDPE缠绕增强管
A19: 16 | B19: SC镀锌钢管 | C19: DN100 | D19: m | E19: 894.40 | F19: 50.00 | G19: 13% | H19: 44720.00 | I19: 照明工程、监控工程电缆保护管
A20: 17 | B20: PVC-U管 | C20: φ110 | D20: m | E20: 1431.00 | F20: 11.00 | G20: 13% | H20: 15741.00 | I20: 照明工程电缆保护管
A21: 18 | B21: PE管 | C21: φ100*4.2 | D21: m | E21: 820.44 | F21: 28.00 | G21: 13% | H21: 22972.32 | I21: 监控工程、电力工程通讯保护管
A22: 19 | B22: MPP管 | C22: φ200*10 | D22: m | E22: 2972.24 | F22: 70.00 | G22: 13% | H22: 208056.80 | I22: 电力保护管
A23: 20 | B23: 电缆 | C23: YJV-0.6/1kV-5*25mm2 | D23: m | E23: 222.20 | F23: 80.00 | G23: 13% | H23: 17776.00 | I23: 照明电缆
A24: 21 | B24: 电缆 | C24: YJV-0.6/1kV-3*4mm2 | D24: m | E24: 252.50 | F24: 9.00 | G24: 13% | H24: 2272.50 | I24: 监控电缆
A25: 22 | B25: 止车柱 | C25: φ120*750mm，壁厚10mm | D25: 根 | E25: 40.00 | F25: 215.00 | G25: 13% | H25: 8600.00 | I25: 道路工程止车柱，含空心防撞柱内预埋钢管，C25混凝土基础、黄色反光警示条
A26: 23 | B26: 黑色铸铁树池篦子 | C26: 120cm*120cm | D26: 个 | E26: 38.00 | F26: 250.00 | G26: 13% | H26: 9500.00 | I26: 道路工程黑色铸铁树池篦子
A27: 24 | B27: φ700 重型球墨铸铁井盖 | C27: D400（可调式防沉，防盗，铸铁调节环） | D27: 套 | E27: 9.00 | F27: 750.00 | G27: 13% | H27: 6750.00 | I27: 雨污水检查井
A28: 25 | B28: φ950球墨铸铁超重型带锁防盗井盖 | C28: φ950 | D28: 套 | E28: 28.00 | F28: 810.00 | G28: 13% | H28: 22680.00 | I28: 电力检查井
A29: 26 | B29: 铸铁井盖井座 | C29: 800*800*1000mm | D29: 套 | E29: 12.00 | F29: 400.00 | G29: 13% | H29: 4800.00 | I29: 照明工程砖砌手孔井
A30: 27 | B30: 铸铁立箅带盖板 | C30: 2410*380mm | D30: 套 | E30: 42.00 | F30: 300.00 | G30: 13% | H30: 12600.00 | I30: 雨水工程双篦环保型雨水口
A31: 28 | B31: C25钢筋砼井盖 | C31: 600*600*60mm | D31: 套 | E31: 20.00 | F31: 170.00 | G31: 13% | H31: 3400.00 | I31: 监控工程混凝土井盖
A32: 29 | B32: 悬臂式标志立杆 | C32: Q235钢，φ219*10*6800mm、钢管横梁φ114*8*650、φ114*8*3405mm，详见杆件清单 | D32: 根 | E32: 4.00 | F32: 7500.00 | G32: 13% | H32: 30000.00 | I32: 交通设施工程悬臂式指路标志牌架安装
A33: 30 | B33: 单柱杆 | C33: φ89*4.5*2900mm | D33: 根 | E33: 5.00 | F33: 310.00 | G33: 13% | H33: 1550.00 | I33: 交通设施工程悬臂式指路标志牌架安装
A34: 31 | B34: 单柱杆 | C34: φ89*4.5*3579mm | D34: 根 | E34: 3.00 | F34: 380.00 | G34: 13% | H34: 1140.00 | I34: 交通设施工程悬臂式指路标志牌架安装
A35: 32 | B35: 单柱杆 | C35: φ89*4.5*3600mm | D35: 根 | E35: 4.00 | F35: 385.00 | G35: 13% | H35: 1540.00 | I35: 交通设施工程悬臂式指路标志牌架安装
A36: 33 | B36: 悬臂式指路标志牌架 | C36: 1、材质、规格尺寸:2400*1000*3mm铝合金板 2、反光膜：二级（高强级） | D36: m2 | E36: 14.40 | F36: 363.00 | G36: 13% | H36: 5227.20 | I36: 交通设施工程悬臂式指路标志牌架安装
A37: 34 | B37: 标志牌板架 | C37: 1、材质:2.5mm铝合金板2、规格尺寸：单圆-φ800 △三角900 3、反光膜：Ⅳ类/Ⅴ类(超强级及以上) | D37: m2 | E37: 6.67 | F37: 440.00 | G37: 13% | H37: 2934.80 | I37: 交通设施工程悬臂式指路标志牌架安装
A38: 35 | B38: 标志牌板架 | C38: 材质、规格尺寸:1450*430mm 2.5mm厚LF2-M铝板 | D38: m2 | E38: 3.11 | F38: 320.00 | G38: 13% | H38: 995.20 | I38: 交通设施工程悬臂式指路标志牌架安装
A39: 36 | B39: 单臂钢管路灯 | C39: 灯杆H=13m B型杆 LED100W 防护等级IP65 | D39: 套 | E39: 2.00 | F39: 3650.00 | G39: 13% | H39: 7300.00 | I39: 暂估价，照明工程路灯
A40: 37 | B40: 单臂钢管路灯 | C40: 灯杆H=13m E型杆 LED100W 防护等级IP65 | D40: 套 | E40: 2.00 | F40: 3650.00 | G40: 13% | H40: 7300.00 | I40: 暂估价，照明工程路灯
A41: 38 | B41: 单臂钢管路灯 | C41: 灯杆H=13m N2型杆 LED100W 防护等级IP65 | D41: 套 | E41: 2.00 | F41: 3650.00 | G41: 13% | H41: 7300.00 | I41: 暂估价，照明工程路灯
A42: 39 | B42: 单臂钢管路灯 | C42: 灯杆H=13m(常规路灯，无交通设施) LED100W 防护等级IP65 | D42: 套 | E42: 1.00 | F42: 3350.00 | G42: 13% | H42: 3350.00 | I42: 暂估价，照明工程路灯
A43: 40 | B43: 交叉口交通监控横臂 | C43: L=3m | D43: 套 | E43: 3.00 | F43: 290.00 | G43: 13% | H43: 870.00 | I43: 监控工程
A44: 41 | B44: 路灯控制箱 | D44: 台 | E44: 1.00 | F44: 4300.00 | G44: 13% | H44: 4300.00 | I44: 照明工程路灯，暂估价
A45: 42 | B45: 闭路电视摄像机 | C45: 400万像素，含电源灯等相关设备 | D45: 台 | E45: 3.00 | F45: 5000.00 | G45: 13% | H45: 15000.00 | I45: 交叉口交通监控球，暂估价
A46: 43 | B46: 闭路电视杆上控制机箱 | D46: 组 | E46: 3.00 | F46: 3100.00 | G46: 13% | H46: 9300.00 | I46: 监控工程，暂估价
A47: 44 | B47: 标准砖 | C47: 240×115×53 | D47: 千块 | E47: =12.36+8.16 -> 20.52 | F47: 360.00 | G47: 3% | H47: 7387.20 | I47: 照明工程砖砌电缆井、监控工程矩形接线井
A48: 总价（元）： | H48: =SUM(H4:H47) -> 748075.16
A49: 备注：1、以上含税单价均包括运、装卸到场费用； 2、招标数量为按设计图纸理论计量，结算按实调整； 3、暂估价材料结算据实调整。
